fUST/lending_fUST_20240508
["ID","MTS","AMOUNT","RATE_DAILY","PERIOD"]
[326630232,1715166639140,-500.0,0.00024657,2]
[326630233,1715166639150,-500.0,0.00024657,2]
[326630234,1715166639161,-500.0,0.00024657,2]
[326630235,1715166639171,-500.0,0.00024657,2]
[326630236,1715166639180,-500.0,0.00024657,2]
[326630237,1715166639191,-151.0,0.00024657,2]
[326630238,1715166639201,-500.0,0.00024657,2]
[326630239,1715166639211,-500.0,0.00024657,2]
[326630240,1715166639223,-599.62,0.00024657,2]
[326630241,1715166639234,-500.0,0.00024657,2]
[326630242,1715166639244,-187.78992473,0.00024657,2]
[326630243,1715166639254,-500.0,0.00024657,2]
[326630244,1715166639263,-500.0,0.00024657,2]
[326630245,1715166639272,-500.0,0.00024657,2]
[326630246,1715166639282,-645.51,0.00024657,2]
[326630247,1715166639292,-545.57,0.00024657,2]
[326630248,1715166639301,-500.0,0.00024657,2]
[326630249,1715166639311,-500.0,0.00024657,2]
[326630250,1715166639321,-500.0,0.00024657,2]
[326630251,1715166639331,-521.69943983,0.00024657,2]
[326630252,1715166639341,-500.0,0.00024657,2]
[326630253,1715166639351,-500.0,0.00024657,2]
[326630255,1715166639361,-500.0,0.00024657,2]
[326630257,1715166639371,-413.76407704,0.00024657,2]
[326630259,1715166639381,-191.40383289,0.00024657,2]
[326630261,1715166639391,-500.6764767,0.00024657,2]
[326630262,1715166639401,-500.0,0.00024657,2]
[326630263,1715166639410,-500.0,0.00024657,2]
[326630264,1715166639420,-500.66385065,0.00024657,2]
[326630265,1715166639429,-502.41432714,0.00024657,2]
[326630266,1715166639439,-501.09817355,0.00024657,2]
[326630267,1715166639448,-500.0,0.00024657,2]
[326630268,1715166639459,-500.0,0.00024657,2]
[326630269,1715166639469,-500.0,0.00024657,2]
[326630270,1715166639478,-500.0,0.00024657,2]
[326630271,1715166639488,-500.0,0.00024657,2]
[326630272,1715166639498,-500.0,0.00024657,2]
[326630273,1715166639508,-500.0,0.00024657,2]
[326630274,1715166639518,-500.0,0.00024657,2]
[326630275,1715166639528,-501.50519942,0.00024657,2]
[326630276,1715166639538,-500.0,0.00024657,2]
[326630277,1715166639548,-500.0,0.00024657,2]
[326630278,1715166639558,-543.41843548,0.00024657,2]
[326630279,1715166639567,-580.65,0.00024657,2]
[326630280,1715166639576,-500.0,0.00024657,2]
[326630281,1715166639587,-500.0,0.00024657,2]
[326630282,1715166639597,-500.0,0.00024657,2]
[326630283,1715166639607,-500.0,0.00024657,2]
[326630284,1715166639617,-500.0,0.00024657,2]
[326630285,1715166639627,-500.0,0.00024657,2]
[326630286,1715166639636,-500.0,0.00024657,2]
[326630287,1715166639646,-500.0,0.00024657,2]
[326630288,1715166639655,-622.55764886,0.00024657,2]
[326630289,1715166639665,-461.74134685,0.00024657,2]
[326630290,1715166639674,-500.0,0.00024657,2]
[326630291,1715166639683,-500.0,0.00024657,2]
[326630292,1715166639692,-500.0,0.00024657,2]
[326630293,1715166639702,-500.0,0.00024657,2]
[326630294,1715166639711,-500.0,0.00024657,2]
[326630295,1715166639721,-500.0,0.00024657,2]
[326630296,1715166639730,-500.0,0.00024657,2]
[326630297,1715166639739,-500.0,0.00024657,2]
[326630298,1715166639749,-500.0,0.00024657,2]
[326630299,1715166639758,-500.0,0.00024657,2]
[326630300,1715166639768,-500.0,0.00024657,2]
[326630301,1715166639777,-500.0,0.00024657,2]
[326630302,1715166639786,-500.0,0.00024657,2]
[326630303,1715166639795,-500.0,0.00024657,2]
[326630304,1715166639805,-500.0,0.00024657,2]
[326630305,1715166639814,-500.0,0.00024657,2]
[326630306,1715166639823,-500.0,0.00024657,2]
[326630307,1715166639833,-539.4,0.00024657,2]
[326630308,1715166639843,-500.0,0.00024657,2]
[326630309,1715166639852,-174.899533,0.00024657,2]
[326630310,1715166639861,-174.899533,0.00024657,2]
[326630311,1715166639870,-500.0,0.00024657,2]
[326630312,1715166639880,-500.0,0.00024657,2]
[326630313,1715166639889,-500.0,0.00024657,2]
[326630314,1715166639899,-151.0,0.00024657,2]
[326630315,1715166639908,-500.0,0.00024657,2]
[326630316,1715166639918,-500.0,0.00024657,2]
[326630317,1715166639928,-500.0,0.00024657,2]
[326630318,1715166639937,-213.445804,0.00024657,2]
[326630319,1715166639946,-500.0,0.00024657,2]
[326630320,1715166639955,-500.0,0.00024657,2]
[326630321,1715166639965,-500.0,0.00024657,2]
[326630322,1715166639974,-566.9,0.00024657,2]
[326630323,1715166639983,-500.0,0.00024657,2]
[326630324,1715166639993,-652.58,0.00024657,2]
[326630325,1715166640003,-500.0,0.00024657,2]
[326630326,1715166640012,-656.61,0.00024657,2]
[326630327,1715166640021,-585.14,0.00024657,2]
[326630328,1715166640031,-500.0,0.00024657,2]
[326630329,1715166640041,-500.0,0.00024657,2]
[326630330,1715166640050,-602.87,0.00024657,2]
[326630331,1715166640060,-500.0,0.00024657,2]
[326630332,1715166640070,-500.0,0.00024657,2]
[326630333,1715166640079,-500.0,0.00024657,2]
[326630334,1715166640090,-500.0,0.00024657,2]
[326630335,1715166640100,-500.0,0.00024657,2]
[326630336,1715166640110,-782.84,0.00024657,2]
[326630337,1715166640120,-156.642675,0.00024657,2]
[326630338,1715166640130,-500.0,0.00024657,2]
[326630339,1715166640144,-604.89,0.00024657,2]
[326630340,1715166640153,-500.0,0.00024657,2]
[326630341,1715166640163,-500.0,0.00024657,2]
[326630342,1715166640172,-156.642675,0.00024657,2]
[326630343,1715166640182,-500.0,0.00024657,2]
[326630344,1715166640192,-500.0,0.00024657,2]
[326630345,1715166640202,-200.0,0.00024658,15]
[326630346,1715166640212,-229.94,0.00024931,2]
[326630347,1715166640225,-159.33,0.00024931,2]
[326630348,1715166640236,-500.0,0.00024931,2]
[326630349,1715166640249,-617.77,0.00024931,2]
[326630350,1715166640259,-425.54,0.00024931,2]
[326630351,1715166640269,-191.19,0.00024931,2]
[326630352,1715166640279,-437.69,0.00024931,2]
[326630353,1715166640289,-628.38024839,0.00024931,2]
[326630354,1715166640299,-501.89720286,0.00024931,2]
[326630355,1715166640311,-500.0,0.00024931,2]
[326630356,1715166640323,-556.11895935,0.00024931,2]
[326630357,1715166640333,-229.65474967,0.00024931,2]
[326630358,1715166640343,-500.0,0.00024931,2]
[326630359,1715166640353,-500.0,0.00024931,2]
[326630360,1715166640362,-500.0,0.00024931,2]
[326630361,1715166640372,-267.09,0.00024931,2]
[326630362,1715166640382,-500.0,0.00024931,2]
[326630363,1715166640392,-174.19742946,0.00024931,2]
[326630364,1715166640402,-500.0,0.00024931,2]
[326630365,1715166640412,-220.56,0.00024931,2]
[326630366,1715166640422,-277.48166795,0.00024931,2]
[326630367,1715166640432,-307.57,0.00024931,2]
[326630368,1715166640441,-500.0,0.00024931,2]
[326630369,1715166640451,-500.0,0.00024931,2]
[326630370,1715166640461,-177.08,0.00024931,2]
[326630371,1715166640470,-176.75,0.00024931,2]
[326630372,1715166640480,-310.22,0.00024931,2]
[326630373,1715166640490,-500.0,0.00024931,2]
[326630374,1715166640500,-294.03,0.00024931,2]
[326630375,1715166640510,-500.0,0.00024931,2]
[326630376,1715166640521,-500.0,0.00024931,2]
[326630377,1715166640533,-500.0,0.00024931,2]
[326630378,1715166640543,-500.0,0.00024931,2]
[326630379,1715166640554,-500.0,0.00024931,2]
[326630380,1715166640564,-155.18,0.00024931,2]
[326630381,1715166640671,-500.0,0.00024931,2]
[326630382,1715166640682,-375.25,0.00024931,2]
[326630383,1715166640692,-247.96,0.00024931,2]
[326630384,1715166640702,-181.67,0.00024931,2]
[326630385,1715166640712,-500.0,0.00024931,2]
[326630386,1715166640723,-500.0,0.00024931,2]
[326630387,1715166640734,-388.5,0.00024931,2]
[326630388,1715166640744,-500.0,0.00024931,2]
[326630389,1715166640754,-500.0,0.00024931,2]
[326630390,1715166640765,-500.0,0.00024931,2]
[326630391,1715166640775,-500.0,0.00024931,2]
[326630392,1715166640786,-652.58,0.00024931,2]
[326630393,1715166640795,-656.61,0.00024931,2]
[326630394,1715166640805,-331.46,0.00024931,2]
[326630395,1715166640815,-535.9,0.00024931,2]
[326630396,1715166640825,-500.0,0.00024931,2]
[326630397,1715166640839,-500.0,0.00024931,2]
[326630398,1715166640848,-782.84,0.00024931,2]
[326630399,1715166640857,-505.52,0.00024931,2]
[326630400,1715166640867,-400.02877114,0.00025,2]
[326630401,1715166640876,-154.58262691,0.00025,2]
[326630402,1715166640885,-500.0,0.00025205,2]
[326630403,1715166640895,-500.0,0.00025205,2]
[326630404,1715166640904,-500.0,0.00025205,2]
[326630405,1715166640914,-424.49,0.00025205,2]
[326630406,1715166640924,-475.74,0.00025205,2]
[326630407,1715166640934,-500.0,0.00025205,2]
[326630408,1715166640943,-500.0,0.00025205,2]
[326630409,1715166640952,-500.0,0.00025205,2]
[326630410,1715166640962,-500.0,0.00025205,2]
[326630411,1715166640971,-500.0,0.00025205,2]
[326630412,1715166640981,-500.0,0.00025205,2]
[326630413,1715166640990,-500.0,0.00025205,2]
[326630414,1715166641000,-500.0,0.00025205,2]
[326630415,1715166641010,-165.21,0.00025205,2]
[326630416,1715166641020,-469.9,0.00025205,2]
[326630417,1715166641030,-652.58,0.00025205,2]
[326630418,1715166641042,-656.61,0.00025205,2]
[326630419,1715166641054,-523.36,0.00025205,2]
[326630420,1715166641063,-782.84,0.00025205,2]
[326630421,1715166641072,-156.642675,0.00025205,2]
[326630422,1715166641084,-156.642675,0.00025205,2]
[326630423,1715166641093,-2017.45601153,0.00025479,5]
[326630424,1715166641102,-500.0,0.00025479,2]
[326630425,1715166641111,-264.02,0.00025479,2]
[326630426,1715166641120,-500.0,0.00025479,2]
[326630427,1715166641130,-541.46,0.00025479,2]
[326630428,1715166641145,-223.95,0.00025479,2]
[326630429,1715166641155,-500.0,0.00025479,2]
[326630432,1715166641164,-443.6,0.00025479,2]
[326630435,1715166641174,-601.81,0.00025479,2]
[326630437,1715166641183,-578.45,0.00025479,2]
[326630440,1715166641192,-500.0,0.00025479,2]
[326630442,1715166641201,-500.0,0.00025479,2]
[326630444,1715166641211,-174.899533,0.00025479,2]
[326630446,1715166641222,-174.899533,0.00025479,2]
[326630448,1715166641231,-151.0,0.00025479,2]
[326630449,1715166641241,-652.58,0.00025479,2]
[326630451,1715166641250,-656.61,0.00025479,2]
[326630453,1715166641260,-782.84,0.00025479,2]
[326630454,1715166641269,-267.59,0.00025753,2]
[326630455,1715166641280,-500.0,0.00025753,2]
[326630456,1715166641290,-231.26,0.00025753,2]
[326630457,1715166641299,-500.0,0.00025753,2]
[326630458,1715166641309,-500.0,0.00025753,2]
[326630459,1715166641319,-623.674319,0.00025753,2]
[326630460,1715166641330,-623.674319,0.00025753,2]
[326630461,1715166641342,-166.216474,0.00025753,2]
[326630462,1715166641352,-652.58,0.00025753,2]
[326630463,1715166641363,-656.61,0.00025753,2]
[326630464,1715166641373,-782.84,0.00025753,2]
[326630465,1715166641383,-460.98,0.00026027,2]
[326630466,1715166641393,-260.299539,0.00026027,2]
[326630467,1715166641405,-260.299539,0.00026027,2]
[326630468,1715166641414,-500.0,0.00026027,2]
[326630469,1715166641424,-500.0,0.00026027,2]
[326630470,1715166641435,-652.58,0.00026027,2]
[326630471,1715166641445,-656.61,0.00026027,2]
[326630472,1715166641455,-782.84,0.00026027,2]
[326630473,1715166641465,-500.0,0.00026301,2]
[326630474,1715166641475,-569.63,0.00026301,2]
[326630475,1715166641484,-652.58,0.00026301,2]
[326630476,1715166641493,-656.61,0.00026301,2]
[326630477,1715166641503,-782.84,0.00026301,2]
[326630478,1715166641513,-1017.9079192,0.00026404,2]
[326630479,1715166641522,-495.1,0.00026575,2]
[326630480,1715166641533,-652.58,0.00026575,2]
[326630481,1715166641543,-656.61,0.00026575,2]
[326630482,1715166641552,-782.84,0.00026575,2]
[326630483,1715166641561,-652.58,0.00026849,2]
[326630484,1715166641571,-656.61,0.00026849,2]
[326630485,1715166641580,-782.84,0.00026849,2]
[326630486,1715166641591,-166.666666,0.00026986,2]
[326630487,1715166641601,-620.00000002,0.0002699,2]
[326630488,1715166641610,-2697.22652809,0.00027,3]
[326630489,1715166641620,-9408.71385875,0.00027,2]
[326630490,1715166641629,-239.66751687,0.00027,10]
[326630491,1715166641640,-186.81844012,0.00027,2]
[326630492,1715166641649,-10615.15949594,0.00027,2]
[326630493,1715166641658,-3966.74516132,0.00027,2]
[326630494,1715166641668,-3000.0,0.00027,2]
[326630495,1715166641677,-1454.42684491,0.00027,2]
[326630496,1715166641687,-168.360202,0.00027,2]
[326630497,1715166641696,-168.360202,0.00027,2]
[326630498,1715166641705,-260.299539,0.00027,2]
[326630499,1715166641715,-260.299539,0.00027,2]
[326630500,1715166641725,-623.674319,0.00027,2]
[326630501,1715166641734,-623.674319,0.00027,2]
[326630502,1715166641744,-174.899533,0.00027,2]
[326630503,1715166641753,-174.899533,0.00027,2]
[326630504,1715166641763,-151.0,0.00027,2]
[326630505,1715166641772,-156.642675,0.00027,2]
[326630506,1715166641781,-156.642675,0.00027,2]
[326630507,1715166641790,-652.58,0.00027123,2]
[326630508,1715166641799,-656.61,0.00027123,2]
[326630509,1715166641809,-782.84,0.00027123,2]
[326630510,1715166641819,-652.58,0.00027397,2]
[326630511,1715166641828,-656.61,0.00027397,2]
[326630512,1715166641838,-782.84,0.00027397,2]
[326630513,1715166641847,-652.58,0.00027671,2]
[326630514,1715166641857,-656.61,0.00027671,2]
[326630515,1715166641866,-782.84,0.00027671,2]
[326630516,1715166641875,-652.58,0.00027945,2]
[326630517,1715166641885,-656.61,0.00027945,2]
[326630518,1715166641894,-782.84,0.00027945,2]
[326630519,1715166641904,-424.50332659,0.00028,2]
[326630520,1715166641913,-151.0,0.00028219,2]
[326630521,1715166641922,-151.0,0.00028219,2]
[326630522,1715166641931,-652.58,0.00028219,2]
[326630523,1715166641941,-656.61,0.00028219,2]
[326630524,1715166641950,-782.84,0.00028219,2]
[326630525,1715166641960,-652.58,0.00028493,2]
[326630526,1715166641969,-656.61,0.00028493,2]
[326630527,1715166641979,-782.84,0.00028493,2]
[326630528,1715166641988,-265.638326,0.00028637,2]
[326630529,1715166641997,-167.84184,0.00028637,2]
[326630530,1715166642006,-246.021511,0.00028637,2]
[326630531,1715166642015,-652.58,0.00028767,2]
[326630532,1715166642024,-656.61,0.00028767,2]
[326630533,1715166642033,-782.84,0.00028767,2]
[326630534,1715166642042,-166.666666,0.00028767,2]
[326630535,1715166642051,-166.666667,0.00028767,2]
[326630536,1715166642060,-652.58,0.00029041,2]
[326630537,1715166642069,-656.61,0.00029041,2]
[326630538,1715166642078,-782.84,0.00029041,2]
[326630539,1715166642089,-652.58,0.00029315,2]
[326630540,1715166642099,-656.61,0.00029315,2]
[326630541,1715166642107,-156.642675,0.00029315,2]
[326630542,1715166642117,-782.84,0.00029315,2]
[326630543,1715166642126,-156.642675,0.00029315,2]
[326630544,1715166642137,-652.58,0.00029589,2]
[326630545,1715166642148,-656.61,0.00029589,2]
[326630546,1715166642157,-782.84,0.00029589,2]
[326630547,1715166642166,-150.0,0.00029664,2]
[326630548,1715166642175,-50175.0,0.00029666,120]
[326630549,1715166642185,-153.0,0.00029812,2]
[326630550,1715166642194,-153.0,0.00029812,2]
[326630551,1715166642203,-153.0,0.00029812,2]
[326630552,1715166642212,-153.0,0.00029812,2]
[326630553,1715166642223,-153.0,0.00029812,2]
[326630554,1715166642232,-652.58,0.00029863,2]
[326630555,1715166642242,-656.61,0.00029863,2]
[326630556,1715166642252,-782.84,0.00029863,2]
[326630557,1715166642261,-150.0,0.00029899,2]
[326630558,1715166642270,-150.0,0.00029973,2]
[326630559,1715166642280,-24562.45277619,0.0003,10]
[326630560,1715166642289,-154.58262691,0.0003,4]
[326630561,1715166642298,-139.92386771,0.0003,4]
[326630562,1715166642401,-14.6587592,0.0003,4]
[326630563,1715166642410,-154.58262691,0.0003,4]
[326630564,1715166642419,-154.58262691,0.0003,2]
[326630565,1715166642429,-12596.17598699,0.0003,30]
[326630566,1715166642542,-5019.02147999,0.0003,30]
[326630569,1715166647256,-3217.77,0.0003,30]
[326630579,1715166647274,-14828.70983302,0.0003,30]
[326630585,1715166647283,-1023.11528943,0.0003,5]
[326630590,1715166647293,-151.0,0.0003,2]
[326630595,1715166647302,-160.0,0.0003,2]
[326630601,1715166647311,-1870.25,0.0003,3]
[326630605,1715166647321,-2000.0,0.0003,3]
[326630611,1715166647330,-9207.72839215,0.0003,14]
[326630615,1715166647340,-166.0,0.0003,2]
[326630620,1715166647349,-801.00749412,0.0003,120]
[326630623,1715166647359,-151.0,0.0003,2]
[326630627,1715166647368,-151.0,0.0003,2]
[326630631,1715166647377,-151.0,0.0003,2]
[326630634,1715166647387,-151.0,0.0003,2]
[326630638,1715166647396,-151.0,0.0003,2]
[326630641,1715166647406,-168.360202,0.0003,2]
[326630644,1715166647415,-168.360202,0.0003,2]
[326630647,1715166647424,-168.360202,0.0003,2]
[326630648,1715166647433,-168.360202,0.0003,2]
[326630652,1715166647443,-260.299539,0.0003,2]
[326630655,1715166647452,-260.299539,0.0003,2]
[326630658,1715166647461,-260.299539,0.0003,2]
[326630661,1715166647471,-260.299539,0.0003,2]
[326630663,1715166647480,-623.674319,0.0003,2]
[326630667,1715166647490,-623.674319,0.0003,2]
[326630670,1715166647499,-623.674319,0.0003,2]
[326630673,1715166647509,-623.674319,0.0003,2]
[326630676,1715166647518,-1011.51570982,0.0003,15]
[326630679,1715166647529,-174.899533,0.0003,2]
[326630682,1715166647540,-174.899533,0.0003,2]
[326630685,1715166647549,-174.899533,0.0003,2]
[326630688,1715166647559,-174.899533,0.0003,2]
[326630691,1715166647568,-274.363597,0.0003,2]
[326630693,1715166647579,-259.0,0.0003,2]
[326630695,1715166647589,-156.642675,0.0003,2]
[326630697,1715166647598,-156.642675,0.0003,2]
[326630699,1715166647608,-652.58,0.00030136,2]
[326630701,1715166647618,-656.61,0.00030136,2]
[326630703,1715166647627,-782.84,0.00030136,2]
[326630705,1715166647636,-150.0,0.00030282,2]
[326630707,1715166647646,-652.58,0.0003041,2]
[326630709,1715166647655,-656.61,0.0003041,2]
[326630711,1715166647664,-782.84,0.0003041,2]
[326630713,1715166647674,-166.0,0.00030411,2]
[326630715,1715166647683,-200.0,0.00030591,2]
[326630717,1715166647693,-306.0,0.0003063,2]
[326630719,1715166647702,-652.58,0.00030684,2]
[326630721,1715166647712,-656.61,0.00030684,2]
[326630732,1715166647806,-782.84,0.00030684,2]
[326630734,1715166647815,-150.0,0.00030899,2]
[326630736,1715166647824,-160.0,0.000309,4]
[326630738,1715166647834,-160.0,0.000309,4]
[326630740,1715166647845,-500.0,0.000309,2]
[326630742,1715166647855,-7511.20694949,0.000309,2]
[326630744,1715166647865,-652.68,0.00030958,2]
[326630746,1715166647874,-656.73825064,0.00030958,2]
[326630748,1715166647884,-782.96038952,0.00030958,2]
[326630750,1715166647894,-1967.00994219,0.00031,2]
[326630752,1715166647904,-9801.0,0.00031,2]
[326630754,1715166647913,-257.643546,0.00031,2]
[326630756,1715166647923,-151.0,0.00031,2]
[326630758,1715166647932,-276.712491,0.00031,2]
[326630760,1715166647942,-168.360202,0.00031,2]
[326630761,1715166647951,-168.360202,0.00031,2]
[326630762,1715166647960,-418.54091408,0.00031,2]
[326630763,1715166647969,-418.54091408,0.00031,2]
[326630764,1715166647978,-418.54091408,0.00031,2]
[326630765,1715166647988,-418.54091408,0.00031,2]
[326630766,1715166647997,-418.54091408,0.00031,2]
[326630767,1715166648006,-418.54091408,0.00031,2]
[326630768,1715166648015,-418.54091408,0.00031,2]
[326630769,1715166648024,-418.54091408,0.00031,2]
[326630770,1715166648033,-418.54091408,0.00031,2]
[326630772,1715166648043,-418.54091408,0.00031,2]
[326630774,1715166648052,-418.54091408,0.00031,2]
[326630775,1715166648062,-418.54091408,0.00031,2]
[326630777,1715166648071,-418.54091408,0.00031,2]
[326630779,1715166648081,-418.54091408,0.00031,2]
[326630781,1715166648091,-418.54091408,0.00031,2]
[326630783,1715166648100,-418.54091408,0.00031,2]
[326630785,1715166648109,-418.54091408,0.00031,2]
[326630787,1715166648119,-418.54091408,0.00031,2]
[326630789,1715166648128,-418.54091408,0.00031,2]
[326630791,1715166648139,-418.54091,0.00031,2]
[326630793,1715166648150,-623.674319,0.00031,2]
[326630795,1715166648160,-623.674319,0.00031,2]
[326630796,1715166648169,-174.899533,0.00031,2]
[326630798,1715166648178,-174.899533,0.00031,2]
[326630800,1715166648187,-156.642675,0.00031,2]
[326630802,1715166648197,-156.642675,0.00031,2]
[326630804,1715166648206,-200.0,0.00031336,120]
[326630806,1715166648216,-166.0,0.00031644,2]
[326630808,1715166648226,-150.0,0.00031899,2]
[326630810,1715166648236,-161.7974768,0.00031997,2]
[326630812,1715166648246,-447.45061743,0.00032,4]
[326630813,1715166648255,-10093.57771943,0.00032,2]
[326630816,1715166648266,-260.299539,0.00032,2]
[326630818,1715166648275,-260.299539,0.00032,2]
[326630820,1715166648284,-160.413977,0.00032037,2]
[326630822,1715166648294,-66369.24,0.00032237,3]
[326630823,1715166648303,-235.71361189,0.0003224,120]
[326630825,1715166648313,-9476.6147,0.00032242,30]
[326630827,1715166648322,-200.0,0.00032286,120]
[326630829,1715166648331,-200.0,0.00032542,120]
[326630831,1715166648344,-2684.4929812,0.00032877,30]
[326630833,1715166648353,-151.0,0.00032877,2]
[326630835,1715166648362,-168.360202,0.00032877,2]
[326630837,1715166648371,-168.360202,0.00032877,2]
[326630839,1715166648381,-260.299539,0.00032877,2]
[326630841,1715166648390,-260.299539,0.00032877,2]
[326630843,1715166648400,-623.674319,0.00032877,2]
[326630845,1715166648409,-623.674319,0.00032877,2]
[326630847,1715166648419,-174.899533,0.00032877,2]
[326630849,1715166648428,-174.899533,0.00032877,2]
[326630851,1715166648438,-156.642675,0.00032877,2]
[326630853,1715166648447,-156.642675,0.00032877,2]
[326630855,1715166648457,-150.0,0.00032899,2]
[326630857,1715166648466,-14840.0,0.000329,7]
[326630859,1715166648475,-817.09856784,0.000329,30]
[326630861,1715166648484,-12728.27897544,0.00033,2]
[326630863,1715166648494,-259.0,0.00033,2]
[326630865,1715166648503,-259.0,0.00033,2]
[326630867,1715166648513,-166.0,0.00033226,2]
[326630869,1715166648522,-200.0,0.00033453,120]
[326630870,1715166648531,-224.543898,0.00033598,2]
[326630872,1715166648541,-153.0,0.00033665,2]
[326630874,1715166648550,-306.0,0.00033665,2]
[326630876,1715166648559,-306.0,0.00033665,2]
[326630878,1715166648569,-306.0,0.00033692,2]
[326630880,1715166648578,-151.0,0.00033877,2]
[326630882,1715166648588,-168.360202,0.00033877,2]
[326630884,1715166648606,-168.360202,0.00033877,2]
[326630886,1715166648618,-1409.04840291,0.00033881,5]
[326630888,1715166648628,-260.299539,0.00033881,2]
[326630890,1715166648638,-260.299539,0.00033881,2]
[326630892,1715166648647,-151.0,0.00033882,2]
[326630894,1715166648657,-151.0,0.00033882,2]
[326630896,1715166648667,-151.0,0.00033882,2]
[326630898,1715166648676,-151.0,0.00033882,2]
[326630900,1715166648685,-168.360202,0.00033882,2]
[326630901,1715166648695,-168.360202,0.00033882,2]
[326630903,1715166648704,-168.360202,0.00033882,2]
[326630905,1715166648714,-168.360202,0.00033882,2]
[326630907,1715166648723,-168.360202,0.00033882,2]
[326630909,1715166648733,-168.360202,0.00033882,2]
[326630912,1715166648742,-168.360202,0.00033882,2]
[326630915,1715166648752,-168.360209,0.00033882,2]
[326630918,1715166648761,-260.299539,0.00033882,2]
[326630920,1715166648770,-260.299539,0.00033882,2]
[326630922,1715166648780,-260.299539,0.00033882,2]
[326630924,1715166648791,-260.299539,0.00033882,2]
[326630926,1715166648800,-260.299539,0.00033882,2]
[326630928,1715166648809,-260.299548,0.00033882,2]
[326630930,1715166648819,-623.674319,0.00033882,2]
[326630932,1715166648829,-623.674319,0.00033882,2]
[326630934,1715166648838,-623.674319,0.00033882,2]
[326630936,1715166648849,-623.674319,0.00033882,2]
[326630938,1715166648858,-623.674319,0.00033882,2]
[326630940,1715166648867,-623.674319,0.00033882,2]
[326630942,1715166648877,-623.674319,0.00033882,2]
[326630944,1715166648886,-623.674327,0.00033882,2]
[326630946,1715166648895,-174.899533,0.00033882,2]
[326630948,1715166648904,-174.899533,0.00033882,2]
[326630950,1715166648916,-174.899533,0.00033882,2]
[326630952,1715166648929,-174.899533,0.00033882,2]
[326630955,1715166648941,-174.899533,0.00033882,2]
[326630957,1715166648953,-174.899524,0.00033882,2]
[326630959,1715166648966,-156.642675,0.00033882,2]
[326630962,1715166648978,-156.642675,0.00033882,2]
[326630964,1715166648988,-156.642675,0.00033882,2]
[326630966,1715166648999,-156.642675,0.00033882,2]
[326630968,1715166649011,-156.642675,0.00033882,2]
[326630970,1715166649022,-156.642673,0.00033882,2]
[326630973,1715166649034,-4090.68533896,0.00033882,2]
[326630975,1715166649045,-2711.34196595,0.00033882,2]
[326630977,1715166649056,-300.0,0.00033882,2]
[326630979,1715166649068,-782.15774532,0.00033882,2]
[326630981,1715166649080,-286.86984143,0.00033882,2]
[326630984,1715166649091,-315.83364702,0.00033882,2]
[326630986,1715166649103,-431.17877784,0.00033882,2]
[326630988,1715166649116,-9952.17391779,0.00033882,2]
[326630991,1715166649128,-152.15866327,0.00033882,2]